Workbook

Sheet Summary
B4: Allowable Investment by Customer Class
B7: RESIDENTIAL (SCHEDULE 1)
D8: Terminal
C9: Distribution | D9: Facilities | E9: Total
B10: Allowable Investment per Customer | C10: ='Sch 001'!H32 -> 1605 | D10: ='Sch 001'!I32 -> 490 | E10: =SUM(C10:D10) -> 2095
B11: GENERAL SERVICE (SCHEDULE 11-12)*
D12: Terminal
C13: Distribution | D13: Facilities | E13: Total
B14: Allowable Investment per kWh | C14: ='Sch 011-012'!K32 -> 0.1354895118 | D14: ='Sch 011-012'!L32 -> 0.03436592826 | E14: =SUM(C14:D14) -> 0.16985544
B15: LARGE GENERAL SERVICE (SCHEDULE 21-22)*
D16: Terminal
C17: Distribution | D17: Facilities | E17: Total
B18: Allowable Investment per kWh | C18: ='Sch 021-022'!K32 -> 0.1384284658 | D18: ='Sch 021-022'!L32 -> 0.01887667464 | E18: =SUM(C18:D18) -> 0.1573051404
B19: PUMPING SERVICE (SCHEDULE 31)
D20: Terminal
C21: Distribution | D21: Facilities | E21: Total
B22: Allowable Investment per kWh | C22: ='Sch 031-032'!K32 -> 0.2324416298 | D22: ='Sch 031-032'!L32 -> 0.03973169865 | E22: =SUM(C22:D22) -> 0.2721733284
B26: * Schedules 12 and 22 are for customers who meet the requirements for service under Schedules 11 and 21 and whose electric use qualifies as "residential load" as defined in the Pacific Northwest Electric Power Planning and Conservation Act and the Residential Purchase and Sale Agreement contract in effect between Avista and the Bonneville Power Administration. Tariffed rates are the same under Schedules 11 and 12 and under Schedules 21 and 22.

Sheet Sch 001
B1: Calculation of Allowance - Schedule 51
B2: Schedule 001
B5: Summary
B6: Total Cost per Customer (C18) | C6: =C21 -> 1822.469813 | D6: C21 | G6: Residential (Schedule 1)
B7: Return on Common Equity (C4*C27) | C7: =C33*C6 -> 114.1775087 | D7: C6*C33
B8: Debt Costs (C4*E22) | C8: =C6*C29 -> 42.82804061 | D8: C6*C29 | G8: # Customers | H8: =C18 -> 109816
B9: Subtotal | C9: =SUM(C7:C8) -> 157.0055493 | D9: C7+C8 | G9: Rate of Return | H9: =C34 -> 0.0861498765
B10: Depreciation Expense | C10: =C41 -> 76.70988745 | D10: C41
B11: Total Revenue Requirement | C11: =SUM(C9:C10) -> 233.7154368 | D11: C9+C10 | H11: Distribution | I11: Terminal
B12: Revenue Requirement Factor | C12: =C42+C34 -> 0.1114582662 | D12: C34+C42 | G12: =N12 -> AVU-E-21-01 2021 Cost of Service Study | H12: Plant | I12: Facilities | J12: Total | N12: AVU-E-21-01 2021 Cost of Service Study
B13: Allowable Investment | C13: =C11/C12 -> 2096.887425 | D13: C11/C12 | G13: Net Plant | H13: =C19 -> 154611560 | I13: =C20 -> 45524785 | J13: =SUM(H13:I13) -> 200136345
B14: Less Meter Cost | C14: =Inputs!C8 -> 0 | D14: Input
B15: TOTAL ALLOWANCE | C15: =C13-C14 -> 2096.887425 | G15: Return on Net Plant | H15: =H13*H9 -> 13319766.8 | I15: =I13*H9 -> 3921954.605 | J15: =SUM(H15:I15) -> 17241721.4
G16: Depreciation Expense | H16: =Inputs!C99 -> 6330322 | I16: =Inputs!C104 -> 2093651 | J16: =SUM(H16:I16) -> 8423973
B17: Cost per Customer | G17: Total | H17: =SUM(H15:H16) -> 19650088.8 | I17: =SUM(I15:I16) -> 6015605.605 | J17: =SUM(J15:J16) -> 25665694.4
B18: Number of Customers | C18: =Inputs!C5 -> 109816 | D18: Input
B19: Total Net Plant Distribution | C19: =Inputs!C80 -> 154611560 | D19: Input
B20: Total Net Plant Terminal Facilities | C20: =Inputs!C85 -> 45524785 | D20: Input | H20: Distribution | I20: Terminal
B21: Total per Customer | C21: =(C20+C19)/C18 -> 1822.469813 | D21: (C19+C20)/C18 | G21: Per Customer Expenses | H21: Plant | I21: Facilities | J21: Total
G22: Net Plant | H22: =(H13/H8) -> 1407.914694 | I22: =I13/H8 -> 414.5551195 | J22: =SUM(H22:I22) -> 1822.469813
B24: Rate of Return/Capital Structure | C24: Capital Structure | G24: Return on Net Plant | H24: =H15/H8 -> 121.291677 | I24: =I15/H8 -> 35.71387234 | J24: =SUM(H24:I24) -> 157.0055493
B25: Long Term Debt | C25: =Inputs!B14 -> 0.5 | D25: Input | G25: Depreciation Expense | H25: =H16/H8 -> 57.64480586 | I25: =I16/H8 -> 19.06508159 | J25: =SUM(H25:I25) -> 76.70988745
B26: Common Equity | C26: =Inputs!B16 -> 0.5 | D26: Input | G26: Total | H26: =SUM(H24:H25) -> 178.9364828 | I26: =SUM(I24:I25) -> 54.77895394 | J26: 233.7154368
B27: Long Term Debt Cost | C27: =Inputs!C14 -> 0.047 | D27: Input
B28: Common Equity Return | C28: =Inputs!C16 -> 0.094 | D28: Input | G28: Allowable Investment | H28: =H26/(Inputs!G125+H9) -> 1605.412402 | I28: =I26/(Inputs!G125+H9) -> 491.475023 | J28: =SUM(H28:I28) -> 2096.887425
B29: Weighted Debt Cost | C29: =C27*C25 -> 0.0235 | D29: C27*C25
B30: Weighted Equity | C30: =C28*C26 -> 0.047 | D30: C28*C26 | G30: Rounded to nearest $5 increment | H30: =H32-H28 -> -0.4124020806 | I30: =I32-I28 -> -1.475023017 | J30: =J32-J28 -> -1.887425097
B31: Rate of Return before Gross Up | C31: =SUM(C29:C30) -> 0.0705 | D31: C29+C30
B32: Gross Up Factor | C32: =Inputs!D22 -> 1.332976096 | D32: Input | G32: Allowable Investment | H32: =MROUND(H28,5) -> 1605 | I32: =MROUND(I28,5) -> 490 | J32: =SUM(H32:I32) -> 2095
B33: Return on Equity after Gross Up | C33: =C30*C32 -> 0.0626498765 | D33: C30*C32
B34: Rate of Return after Gross Up | C34: =C29+C33 -> 0.0861498765 | D34: C29+C33
G35: Apartments
B36: Depreciation | G36: Current Schedule 1 Allowance | H36: 1900
B37: Rate for Distribution | C37: =Inputs!C99/Inputs!C42 -> 0.02664097659 | D37: Input | G37: Current Duplex Allowance | H37: 1520
B38: Rate for Terminal Facilities | C38: =Inputs!C104/Inputs!C47 -> 0.02184774538 | D38: Input | G38: Current Multiplex Allowance | H38: 1140
B39: Distribution Depreciation Expense | C39: =(C37*Inputs!C42)/C18 -> 57.64480586 | G39: Ratio of Duplex to Residence | H39: =H37/H36 -> 0.8
B40: Terminal Fac. Depreciation Expense | C40: =(C38*Inputs!C47)/C18 -> 19.06508159 | G40: New Duplex Allowance | H40: =MROUND(J32*H39,5) -> 1675
B41: Total Annual Depreciation | C41: =SUM(C39:C40) -> 76.70988745 | D41: C39+C40 | G41: Ratio of Multiplex to Residence | H41: =H38/H36 -> 0.6
B42: Weighted Average Depreciation Rate | C42: =Inputs!H125 -> 0.02530838968 | D42: Input | G42: New Multiplex Allowance | H42: =MROUND(J32*H41,5) -> 1255
B46: Apartments
B47: Current Schedule 1 Allowance | C47: 2065 | D47: Schedule 51
B48: Current Duplex Allowance | C48: 1650 | D48: Schedule 51
B49: Current Multiplex Allowance | C49: 1240 | D49: Schedule 51
B50: Ratio of Duplex to Residence | C50: =C48/C47 -> 0.799031477 | D50: C48/C47
B51: New Duplex Allowance | C51: =MROUND(J32*C50,5) -> 1675 | D51: C50*J32
B52: Ratio of Multiplex to Residence | C52: =C49/C47 -> 0.6004842615 | D52: C49/C47
B53: New Multiplex Allowance | C53: =MROUND(J32*C52,5) -> 1260 | D53: C52*J32

Sheet Sch 011-012
B1: Calculation of Allowance - Schedule 51 | E1: Calculation of Allowance - Schedule 51
B2: Schedule 011/012 | E2: Schedule 011/012
C4: $$ | F4: Cents Per kWh
B5: Summary | E5: Summary
B6: Total Cost per Customer (C18) | C6: =C21 -> 2591.874087 | E6: Total Cost per Customer (C18) | F6: =F21/1000 -> 0.1477791759 | G6: F21/1000 | J6: (Schedule 11/12)
B7: Return on Common Equity (C4*C27) | C7: =C33*C6 -> 162.3805914 | E7: Return on Common Equity (C4*C27) | F7: =F33*F6 -> 0.009258347118 | G7: F33*F6
B8: Debt Costs (C4*E22) | C8: =C6*C29 -> 60.90904103 | E8: Debt Costs (C4*E22) | F8: =F6*F29 -> 0.003472810633 | G8: F6*F29 | J8: Annual MWhs | K8: =F18 -> 386398
B9: Subtotal | C9: =SUM(C7:C8) -> 223.2896325 | E9: Subtotal | F9: =SUM(F7:F8) -> 0.01273115775 | G9: F7+F8 | J9: Rate of Return | K9: =F34 -> 0.0861498765
B10: Depreciation Expense | C10: =C41 -> 108.7518951 | E10: Depreciation Expense | F10: =F41/1000 -> 0.006200635096 | G10: F41/1000
B11: Total Revenue Requirement | C11: =SUM(C9:C10) -> 332.0415275 | E11: Total Revenue Requirement | F11: =SUM(F9:F10) -> 0.01893179285 | G11: F9+F10 | K11: Distribution | L11: Terminal
B12: Revenue Requirement Factor | C12: =C42+C34 -> 0.1114582662 | E12: Revenue Requirement Factor | F12: =F42+F34 -> 0.1114582662 | G12: F42+F34 | J12: ='Sch 001'!G12 -> AVU-E-21-01 2021 Cost of Service Study | K12: Plant | L12: Facilities | M12: Total
B13: Allowable Investment | C13: =C11/C12 -> 2979.065967 | E13: Allowable Investment | F13: =F11/F12 -> 0.16985544 | G13: F11/F12 | J13: Net Plant | K13: =F19 -> 45912426 | L13: =F20 -> 11189152 | M13: =SUM(K13:L13) -> 57101578
B14: Less Meter Cost | C14: =Inputs!D8 -> 0 | E14: Less Meter Cost | F14: =(C14*(C18/F18))/1000 -> 0 | G14: Input
B15: TOTAL ALLOWANCE | C15: =C13-C14 -> 2979.065967 | E15: TOTAL ALLOWANCE | F15: =F13-F14 -> 0.16985544 | J15: Return on Net Plant | K15: =K13*K9 -> 3955349.83 | L15: =L13*K9 -> 963944.0629 | M15: =SUM(K15:L15) -> 4919293.893
J16: Depreciation Expense | K16: =Inputs!D99 -> 1879811 | L16: =Inputs!D104 -> 516102 | M16: =SUM(K16:L16) -> 2395913
B17: Cost per Customer | E17: Cost per Customer | J17: Total | K17: =SUM(K15:K16) -> 5835160.83 | L17: =SUM(L15:L16) -> 1480046.063 | M17: =SUM(M15:M16) -> 7315206.893
B18: Number of Customers | C18: =Inputs!D5 -> 22031 | E18: Annual MWhs | F18: =Inputs!D6 -> 386398 | G18: Input
B19: Total Net Plant Distribution | C19: =Inputs!D80 -> 45912426 | E19: Total Net Plant Distribution | F19: =Inputs!D80 -> 45912426 | G19: Input
B20: Total Net Plant Terminal Facilities | C20: =Inputs!D85 -> 11189152 | E20: Total Net Plant Terminal Facilities | F20: =Inputs!D85 -> 11189152 | G20: Input | K20: Distribution | L20: Terminal
B21: Total per Customer | C21: =(C20+C19)/C18 -> 2591.874087 | E21: Total per Customer | F21: =(F20+F19)/F18 -> 147.7791759 | G21: (F20+F19)/F18 | J21: Per Customer Expenses | K21: Plant | L21: Facilities | M21: Total
J22: Net Plant | K22: =K13/K8/1000 -> 0.1188215933 | L22: =L13/K8/1000 -> 0.0289575826 | M22: =SUM(K22:L22) -> 0.1477791759
B24: Rate of Return/Capital Structure | C24: Capital Structure | E24: Rate of Return/Capital Structure | F24: Capital Structure | J24: Return on Net Plant | K24: =K15/K8/1000 -> 0.01023646559 | L24: =L15/K8/1000 -> 0.002494692164 | M24: =SUM(K24:L24) -> 0.01273115775
B25: Long Term Debt | C25: =Inputs!B14 -> 0.5 | E25: Long Term Debt | F25: =Inputs!B14 -> 0.5 | G25: Input | J25: Depreciation Expense | K25: =K16/K8/1000 -> 0.004864960481 | L25: =L16/K8/1000 -> 0.001335674615 | M25: =SUM(K25:L25) -> 0.006200635096
B26: Common Equity | C26: =Inputs!B16 -> 0.5 | E26: Common Equity | F26: =Inputs!B16 -> 0.5 | G26: Input | J26: Total | K26: =SUM(K24:K25) -> 0.01510142607 | L26: =SUM(L24:L25) -> 0.00383036678 | M26: 0.01893179285
B27: Long Term Debt Cost | C27: =Inputs!C14 -> 0.047 | E27: Long Term Debt Cost | F27: =Inputs!C14 -> 0.047 | G27: Input
B28: Common Equity Return | C28: =Inputs!C16 -> 0.094 | E28: Common Equity Return | F28: =Inputs!C16 -> 0.094 | G28: Input | J28: Allowable Investment | K28: =K26/(Inputs!G125+K9) -> 0.1354895118 | L28: =L26/(Inputs!G125+K9) -> 0.03436592826 | M28: =SUM(K28:L28) -> 0.16985544
B29: Weighted Debt Cost | C29: =C27*C25 -> 0.0235 | E29: Weighted Debt Cost | F29: =F27*F25 -> 0.0235 | G29: F27*F25
B30: Weighted Equity | C30: =C28*C26 -> 0.047 | E30: Weighted Equity | F30: =F28*F26 -> 0.047 | G30: F28*F26 | J30: Less: Meter Cost | K30: 0 | L30: =-F14 -> 0 | M30: =SUM(K30:L30) -> 0
B31: Rate of Return before Gross Up | C31: =SUM(C29:C30) -> 0.0705 | E31: Rate of Return before Gross Up | F31: =SUM(F29:F30) -> 0.0705 | G31: F29+F30
B32: Gross Up Factor | C32: =Inputs!D22 -> 1.332976096 | E32: Gross Up Factor | F32: =Inputs!D22 -> 1.332976096 | G32: Input | J32: Allowable Investment | K32: =K28+K30 -> 0.1354895118 | L32: =L28+L30 -> 0.03436592826 | M32: =SUM(K32:L32) -> 0.16985544
B33: Return on Equity after Gross Up | C33: =C30*C32 -> 0.0626498765 | E33: Return on Equity after Gross Up | F33: =F30*F32 -> 0.0626498765 | G33: F30*F32
B34: Rate of Return after Gross Up | C34: =C29+C33 -> 0.0861498765 | E34: Rate of Return after Gross Up | F34: =F29+F33 -> 0.0861498765 | G34: F29+F33
B36: Depreciation | E36: Depreciation
B37: Rate for Distribution | C37: =Inputs!D99/Inputs!D42 -> 0.02664098274 | E37: Rate for Distribution | F37: =Inputs!D99/Inputs!D42 -> 0.02664098274 | G37: Input
B38: Rate for Terminal Facilities | C38: =Inputs!D104/Inputs!D47 -> 0.02177613043 | E38: Rate for Terminal Facilities | F38: =Inputs!D104/Inputs!D47 -> 0.02177613043 | G38: Input
B39: Distribution Depreciation Expense | C39: =(C37*Inputs!D42)/C18 -> 85.32572285 | E39: Distribution Depreciation Expense | F39: =(F37*Inputs!D42)/F18 -> 4.864960481
B40: Terminal Fac. Depreciation Expense | C40: =(C38*Inputs!D47)/C18 -> 23.42617221 | E40: Terminal Fac. Depreciation Expense | F40: =(F38*Inputs!D47)/F18 -> 1.335674615
B41: Total Annual Depreciation | C41: =SUM(C39:C40) -> 108.7518951 | E41: Total Annual Depreciation | F41: =SUM(F39:F40) -> 6.200635096 | G41: F39+F40
B42: Weighted Average Depreciation Rate | C42: =Inputs!H125 -> 0.02530838968 | E42: Weighted Average Depreciation Rate | F42: =Inputs!H125 -> 0.02530838968 | G42: Input

Sheet Sch 021-022
B1: Calculation of Allowance - Schedule 51 | E1: Calculation of Allowance - Schedule 51
B2: Schedule 021/022 | E2: Schedule 021/022
C4: $$ | F4: Cents Per kWh
B5: Summary | E5: Summary
B6: Total Cost per Customer (C18) | C6: =C21 -> 80503.72075 | E6: Total Cost per Customer (C18) | F6: =F21/1000 -> 0.1373085107 | G6: F21/1000 | J6: (Schedule 21/22)
B7: Return on Common Equity (C4*C27) | C7: =C33*C6 -> 5043.548163 | E7: Return on Common Equity (C4*C27) | F7: =F33*F6 -> 0.008602361238 | G7: F33*F6
B8: Debt Costs (C4*E22) | C8: =C6*C29 -> 1891.837438 | E8: Debt Costs (C4*E22) | F8: =F6*F29 -> 0.003226750002 | G8: F6*F29 | J8: Annual MWhs | K8: =F18 -> 621476
B9: Subtotal | C9: =SUM(C7:C8) -> 6935.385601 | E9: Subtotal | F9: =SUM(F7:F8) -> 0.01182911124 | G9: F7+F8 | J9: Rate of Return | K9: =F34 -> 0.0861498765
B10: Depreciation Expense | C10: =C41 -> 3344.154717 | E10: Depreciation Expense | F10: =F41/1000 -> 0.005703846971 | G10: F41/1000
B11: Total Revenue Requirement | C11: =SUM(C9:C10) -> 10279.54032 | E11: Total Revenue Requirement | F11: =SUM(F9:F10) -> 0.01753295821 | G11: F9+F10 | K11: Distribution | L11: Terminal
B12: Revenue Requirement Factor | C12: =C42+C34 -> 0.1114582662 | E12: Revenue Requirement Factor | F12: =F42+F34 -> 0.1114582662 | G12: F42+F34 | J12: ='Sch 001'!G12 -> AVU-E-21-01 2021 Cost of Service Study | K12: Plant | L12: Facilities | M12: Total
B13: Allowable Investment | C13: =C11/C12 -> 92227.70702 | E13: Allowable Investment | F13: =F11/F12 -> 0.1573051404 | G13: F11/F12 | J13: Net Plant | K13: =F19 -> 75491312 | L13: =F20 -> 9842632 | M13: =SUM(K13:L13) -> 85333944
B14: Less Meter Cost | C14: =Inputs!E8 -> 0 | E14: Less Meter Cost | F14: =(C14*(C18/F18))/1000 -> 0 | G14: Input
B15: TOTAL ALLOWANCE | C15: =C13-C14 -> 92227.70702 | E15: TOTAL ALLOWANCE | F15: =F13-F14 -> 0.1573051404 | J15: Return on Net Plant | K15: =K13*K9 -> 6503567.206 | L15: =L13*K9 -> 847941.5312 | M15: =SUM(K15:L15) -> 7351508.737
J16: Depreciation Expense | K16: =Inputs!E99 -> 3085184 | L16: =Inputs!E104 -> 459620 | M16: =SUM(K16:L16) -> 3544804
B17: Cost per Customer | E17: Cost per Customer | J17: Total | K17: =SUM(K15:K16) -> 9588751.206 | L17: =SUM(L15:L16) -> 1307561.531 | M17: =SUM(M15:M16) -> 10896312.74
B18: Number of Customers | C18: =Inputs!E5 -> 1060 | E18: Annual MWhs | F18: =Inputs!E6 -> 621476 | G18: Input
B19: Total Net Plant Distribution | C19: =Inputs!E80 -> 75491312 | E19: Total Net Plant Distribution | F19: =Inputs!E80 -> 75491312 | G19: Input
B20: Total Net Plant Terminal Facilities | C20: =Inputs!E85 -> 9842632 | E20: Total Net Plant Terminal Facilities | F20: =Inputs!E85 -> 9842632 | G20: Input | K20: Distribution | L20: Terminal
B21: Total per Customer | C21: =(C20+C19)/C18 -> 80503.72075 | E21: Total per Customer | F21: =(F20+F19)/F18 -> 137.3085107 | G21: (F20+F19)/F18 | J21: Per Customer Expenses | K21: Plant | L21: Facilities | M21: Total
J22: Net Plant | K22: =K13/K8/1000 -> 0.1214710013 | L22: =L13/K8/1000 -> 0.01583750941 | M22: =SUM(K22:L22) -> 0.1373085107
B24: Rate of Return/Capital Structure | C24: Capital Structure | E24: Rate of Return/Capital Structure | F24: Capital Structure | J24: Return on Net Plant | K24: =K15/K8/1000 -> 0.01046471176 | L24: =L15/K8/1000 -> 0.00136439948 | M24: =SUM(K24:L24) -> 0.01182911124
B25: Long Term Debt | C25: =Inputs!B14 -> 0.5 | E25: Long Term Debt | F25: =Inputs!B14 -> 0.5 | G25: Input | J25: Depreciation Expense | K25: =K16/K8/1000 -> 0.004964285025 | L25: =L16/K8/1000 -> 0.0007395619461 | M25: =SUM(K25:L25) -> 0.005703846971
B26: Common Equity | C26: =Inputs!B16 -> 0.5 | E26: Common Equity | F26: =Inputs!B16 -> 0.5 | G26: Input | J26: Total | K26: =SUM(K24:K25) -> 0.01542899678 | L26: =SUM(L24:L25) -> 0.002103961426 | M26: 0.01753295821
B27: Long Term Debt Cost | C27: =Inputs!C14 -> 0.047 | E27: Long Term Debt Cost | F27: =Inputs!C14 -> 0.047 | G27: Input
B28: Common Equity Return | C28: =Inputs!C16 -> 0.094 | E28: Common Equity Return | F28: =Inputs!C16 -> 0.094 | G28: Input | J28: Allowable Investment | K28: =K26/(Inputs!G125+K9) -> 0.1384284658 | L28: =L26/(Inputs!G125+K9) -> 0.01887667464 | M28: =SUM(K28:L28) -> 0.1573051404
B29: Weighted Debt Cost | C29: =C27*C25 -> 0.0235 | E29: Weighted Debt Cost | F29: =F27*F25 -> 0.0235 | G29: F27*F25
B30: Weighted Equity | C30: =C28*C26 -> 0.047 | E30: Weighted Equity | F30: =F28*F26 -> 0.047 | G30: F28*F26 | J30: Less: Meter Cost | K30: 0 | L30: =-F14 -> 0 | M30: =SUM(K30:L30) -> 0
B31: Rate of Return before Gross Up | C31: =SUM(C29:C30) -> 0.0705 | E31: Rate of Return before Gross Up | F31: =SUM(F29:F30) -> 0.0705 | G31: F29+F30
B32: Gross Up Factor | C32: =Inputs!D22 -> 1.332976096 | E32: Gross Up Factor | F32: =Inputs!D22 -> 1.332976096 | G32: Input | J32: Allowable Investment | K32: =K28+K30 -> 0.1384284658 | L32: =L28+L30 -> 0.01887667464 | M32: =SUM(K32:L32) -> 0.1573051404
B33: Return on Equity after Gross Up | C33: =C30*C32 -> 0.0626498765 | E33: Return on Equity after Gross Up | F33: =F30*F32 -> 0.0626498765 | G33: F30*F32
B34: Rate of Return after Gross Up | C34: =C29+C33 -> 0.0861498765 | E34: Rate of Return after Gross Up | F34: =F29+F33 -> 0.0861498765 | G34: F29+F33
B36: Depreciation | E36: Depreciation
B37: Rate for Distribution | C37: =Inputs!E99/Inputs!E42 -> 0.02661605369 | E37: Rate for Distribution | F37: =Inputs!E99/Inputs!E42 -> 0.02661605369 | G37: Input
B38: Rate for Terminal Facilities | C38: =Inputs!E104/Inputs!E47 -> 0.02148447022 | E38: Rate for Terminal Facilities | F38: =Inputs!E104/Inputs!E47 -> 0.02148447022 | G38: Input
B39: Distribution Depreciation Expense | C39: =(C37*Inputs!E42)/C18 -> 2910.550943 | E39: Distribution Depreciation Expense | F39: =(F37*Inputs!E42)/F18 -> 4.964285025
B40: Terminal Fac. Depreciation Expense | C40: =(C38*Inputs!E47)/C18 -> 433.6037736 | E40: Terminal Fac. Depreciation Expense | F40: =(F38*Inputs!E47)/F18 -> 0.7395619461
B41: Total Annual Depreciation | C41: =SUM(C39:C40) -> 3344.154717 | E41: Total Annual Depreciation | F41: =SUM(F39:F40) -> 5.703846971 | G41: F39+F40
B42: Weighted Average Depreciation Rate | C42: =Inputs!H125 -> 0.02530838968 | E42: Weighted Average Depreciation Rate | F42: =Inputs!H125 -> 0.02530838968 | G42: Input

Sheet Sch 031-032
B1: Calculation of Allowance - Schedule 51 | E1: Calculation of Allowance - Schedule 51
B2: Schedule 031/032 | E2: Schedule 031/032
C4: $$ | F4: Cents Per kWh
B5: Summary | E5: Summary
B6: Total Cost per Customer (C18) | C6: =C21 -> 9965.570334 | E6: Total Cost per Customer (C18) | F6: =F21/1000 -> 0.2372282839 | G6: F21/1000 | J6: (Schedule 31/32)
B7: Return on Common Equity (C4*C27) | C7: =C33*C6 -> 624.3417507 | E7: Return on Common Equity (C4*C27) | F7: =F33*F6 -> 0.01486232269 | G7: F33*F6
B8: Debt Costs (C4*E22) | C8: =C6*C29 -> 234.1909029 | E8: Debt Costs (C4*E22) | F8: =F6*F29 -> 0.005574864672 | G8: F6*F29 | J8: Annual MWhs | K8: =F18 -> 60324
B9: Subtotal | C9: =SUM(C7:C8) -> 858.5326535 | E9: Subtotal | F9: =SUM(F7:F8) -> 0.02043718736 | G9: F7+F8 | J9: Rate of Return | K9: =F34 -> 0.0861498765
B10: Depreciation Expense | C10: =C41 -> 415.8314763 | E10: Depreciation Expense | F10: =F41/1000 -> 0.009898779922 | G10: F41/1000
B11: Total Revenue Requirement | C11: =SUM(C9:C10) -> 1274.36413 | E11: Total Revenue Requirement | F11: =SUM(F9:F10) -> 0.03033596728 | G11: F9+F10 | K11: Distribution | L11: Terminal
B12: Revenue Requirement Factor | C12: =C42+C34 -> 0.1114582662 | E12: Revenue Requirement Factor | F12: =F42+F34 -> 0.1114582662 | G12: F42+F34 | J12: ='Sch 001'!G12 -> AVU-E-21-01 2021 Cost of Service Study | K12: Plant | L12: Facilities | M12: Total
B13: Allowable Investment | C13: =C11/C12 -> 11433.55422 | E13: Allowable Investment | F13: =F11/F12 -> 0.2721733284 | G13: F11/F12 | J13: Net Plant | K13: =F19 -> 12296843 | L13: =F20 -> 2013716 | M13: =SUM(K13:L13) -> 14310559
B14: Less Meter Cost | C14: =Inputs!F8 -> 0 | E14: Less Meter Cost | F14: =(C14*(C18/F18))/1000 -> 0 | G14: Input
B15: TOTAL ALLOWANCE | C15: =C13-C14 -> 11433.55422 | E15: TOTAL ALLOWANCE | F15: =F13-F14 -> 0.2721733284 | J15: Return on Net Plant | K15: =K13*K9 -> 1059371.506 | L15: =L13*K9 -> 173481.3847 | M15: =SUM(K15:L15) -> 1232852.89
J16: Depreciation Expense | K16: =Inputs!F99 -> 503475 | L16: =Inputs!F104 -> 93659 | M16: =SUM(K16:L16) -> 597134
B17: Cost per Customer | E17: Cost per Customer | J17: Total | K17: =SUM(K15:K16) -> 1562846.506 | L17: =SUM(L15:L16) -> 267140.3847 | M17: =SUM(M15:M16) -> 1829986.89
B18: Number of Customers | C18: =Inputs!F5 -> 1436 | E18: Annual MWhs | F18: =Inputs!F6 -> 60324 | G18: Input
B19: Total Net Plant Distribution | C19: =Inputs!F80 -> 12296843 | E19: Total Net Plant Distribution | F19: =Inputs!F80 -> 12296843 | G19: Input
B20: Total Net Plant Terminal Facilities | C20: =Inputs!F85 -> 2013716 | E20: Total Net Plant Terminal Facilities | F20: =Inputs!F85 -> 2013716 | G20: Input | K20: Distribution | L20: Terminal
B21: Total per Customer | C21: =(C20+C19)/C18 -> 9965.570334 | E21: Total per Customer | F21: =(F20+F19)/F18 -> 237.2282839 | G21: (F20+F19)/F18 | J21: Per Customer Expenses | K21: Plant | L21: Facilities | M21: Total
J22: Net Plant | K22: =K13/K8/1000 -> 0.2038466116 | L22: =L13/K8/1000 -> 0.0333816723 | M22: =SUM(K22:L22) -> 0.2372282839
B24: Rate of Return/Capital Structure | C24: Capital Structure | E24: Rate of Return/Capital Structure | F24: Capital Structure | J24: Return on Net Plant | K24: =K15/K8/1000 -> 0.01756136042 | L24: =L15/K8/1000 -> 0.002875826946 | M24: =SUM(K24:L24) -> 0.02043718736
B25: Long Term Debt | C25: =Inputs!B14 -> 0.5 | E25: Long Term Debt | F25: =Inputs!B14 -> 0.5 | G25: Input | J25: Depreciation Expense | K25: =K16/K8/1000 -> 0.008346180625 | L25: =L16/K8/1000 -> 0.001552599297 | M25: =SUM(K25:L25) -> 0.009898779922
B26: Common Equity | C26: =Inputs!B16 -> 0.5 | E26: Common Equity | F26: =Inputs!B16 -> 0.5 | G26: Input | J26: Total | K26: =SUM(K24:K25) -> 0.02590754104 | L26: =SUM(L24:L25) -> 0.004428426243 | M26: 0.03033596728
B27: Long Term Debt Cost | C27: =Inputs!C14 -> 0.047 | E27: Long Term Debt Cost | F27: =Inputs!C14 -> 0.047 | G27: Input
B28: Common Equity Return | C28: =Inputs!C16 -> 0.094 | E28: Common Equity Return | F28: =Inputs!C16 -> 0.094 | G28: Input | J28: Allowable Investment | K28: =K26/(Inputs!G125+K9) -> 0.2324416298 | L28: =L26/(Inputs!G125+K9) -> 0.03973169865 | M28: =SUM(K28:L28) -> 0.2721733284
B29: Weighted Debt Cost | C29: =C27*C25 -> 0.0235 | E29: Weighted Debt Cost | F29: =F27*F25 -> 0.0235 | G29: F27*F25
B30: Weighted Equity | C30: =C28*C26 -> 0.047 | E30: Weighted Equity | F30: =F28*F26 -> 0.047 | G30: F28*F26 | J30: Less: Meter Cost | K30: 0 | L30: =-F14 -> 0 | M30: =SUM(K30:L30) -> 0
B31: Rate of Return before Gross Up | C31: =SUM(C29:C30) -> 0.0705 | E31: Rate of Return before Gross Up | F31: =SUM(F29:F30) -> 0.0705 | G31: F29+F30
B32: Gross Up Factor | C32: =Inputs!D22 -> 1.332976096 | E32: Gross Up Factor | F32: =Inputs!D22 -> 1.332976096 | G32: Input | J32: Allowable Investment | K32: =K28+K30 -> 0.2324416298 | L32: =L28+L30 -> 0.03973169865 | M32: =SUM(K32:L32) -> 0.2721733284
B33: Return on Equity after Gross Up | C33: =C30*C32 -> 0.0626498765 | E33: Return on Equity after Gross Up | F33: =F30*F32 -> 0.0626498765 | G33: F30*F32
B34: Rate of Return after Gross Up | C34: =C29+C33 -> 0.0861498765 | E34: Rate of Return after Gross Up | F34: =F29+F33 -> 0.0861498765 | G34: F29+F33
B36: Depreciation | E36: Depreciation
B37: Rate for Distribution | C37: =Inputs!F99/Inputs!F42 -> 0.02664100466 | E37: Rate for Distribution | F37: =Inputs!F99/Inputs!F42 -> 0.02664100466 | G37: Input
B38: Rate for Terminal Facilities | C38: =Inputs!F104/Inputs!F47 -> 0.02157806801 | E38: Rate for Terminal Facilities | F38: =Inputs!F104/Inputs!F47 -> 0.02157806801 | G38: Input
B39: Distribution Depreciation Expense | C39: =(C37*Inputs!F42)/C18 -> 350.6093315 | E39: Distribution Depreciation Expense | F39: =(F37*Inputs!F42)/F18 -> 8.346180625
B40: Terminal Fac. Depreciation Expense | C40: =(C38*Inputs!F47)/C18 -> 65.22214485 | E40: Terminal Fac. Depreciation Expense | F40: =(F38*Inputs!F47)/F18 -> 1.552599297
B41: Total Annual Depreciation | C41: =SUM(C39:C40) -> 415.8314763 | E41: Total Annual Depreciation | F41: =SUM(F39:F40) -> 9.898779922 | G41: F39+F40
B42: Weighted Average Depreciation Rate | C42: =Inputs!H125 -> 0.02530838968 | E42: Weighted Average Depreciation Rate | F42: =Inputs!H125 -> 0.02530838968 | G42: Input

Sheet Inputs
A1: *From AVU-E-21-01 Cost of Service (Knox)
B4: Total | C4: Schedule 001 | D4: Schedule 011/012 | E4: Schedule 021/022 | F4: Schedule 031/032 | G4: Allocator | H4: Source
A5: Number of Customers | B5: =SUM(C5:F5) -> 134343 | C5: 109816 | D5: 22031 | E5: 1060 | F5: 1436 | G5: C01 | H5: Assign (BF38:BM38)
A6: Annual Consumption (MWhs) | B6: =SUM(C6:F6) -> 2243713 | C6: 1175515 | D6: 386398 | E6: 621476 | F6: 60324 | G6: E01 | H6: Assign (BF11:BM11)
A7: NCP Demand (kW) | B7: 461824 | C7: 247308 | D7: 73439 | E7: 121408 | F7: 19669 | G7: D04 | H7: Assign (BF24:BM24) | J7: **Not Used**
A11: Cost of Capital
A12: Capital | B12: Capital | C12: Component | D12: Weighted
A13: Component | B13: Structure | C13: Cost | D13: Cost
A14: Long Term Debt | B14: 0.5 | C14: 0.047 | D14: =B14*C14 -> 0.0235
A15: Preferred Equity | B15: 0 | C15: 0 | D15: =B15*C15 -> 0
A16: Common Equity | B16: 0.5 | C16: 0.094 | D16: 0.047
A17: Total | B17: =SUM(B14:B16) -> 1 | D17: =SUM(D14:D16) -> 0.0705
A20: Grossed-up Rate of Return
A22: Tax Gross-up Factor | D22: =1/0.750201 -> 1.332976096 | H22: Final approved conversion factor
A25: Weighted ROE * Tax Gross-up | C25: 1.333 * 4.70% | D25: =D22*D16 -> 0.0626498765
A26: Long Term Debt | D26: =D14 -> 0.0235
A27: Preferred Equity * Tax Gross-up | C27: 1.333 * 0.000% | D27: =D15*D22 -> 0
A28: Grossed-up Rate of Return | D28: =SUM(D25:D27) -> 0.0861498765
B33: Plant in Service
A34: Account
C35: Schedule 001 | D35: Schedule 011/012 | E35: Schedule 021/022 | F35: Schedule 031/032
A36: 361 | B36: Structures & Improvements | C36: 3527044 | D36: 1047368 | E36: 1731491 | F36: 280519 | G36: =SUM(C36:F36) -> 6586422 | H36: Assign (Q941:Y1050)
A37: 362 | B37: Station Equipment | C37: 24556663 | D37: 7292184 | E37: 12055321 | F37: 1953084 | G37: =SUM(C37:F37) -> 45857252
A38: 364 | B38: Poles, Towers & Fixtures | C38: 84943744 | D38: 25224333 | E38: 41677427 | F38: 6755898 | G38: 158601402
A39: 365 | B39: OH Conductors & Devices | C39: 57015128 | D39: 16930835 | E39: 27974225 | F39: 4534629 | G39: 106454817
A40: 366 | B40: UG Conduit | C40: 24971693 | D40: 7415429 | E40: 11980023 | F40: 1986093 | G40: 46353238
A41: 367 | B41: UG Conductors & Devices | C41: 42601717 | D41: 12650724 | E41: 20495917 | F41: 3388276 | G41: 79136634
B42: Subtotals | C42: =SUM(C36:C41) -> 237615989 | D42: =SUM(D36:D41) -> 70560873 | E42: 115914404 | F42: 18898499 | G42: 442989765
A44: 368 | B44: Line Transformers | C44: 46453550 | D44: 13794539 | E44: 20927393 | F44: 3694627 | G44: 84870109 | I44: 30M too much
A45: 369 | B45: Services | C45: 49375606 | D45: 9905815 | E45: 465734 | F45: 645845 | G45: 60393000
A46: 370 | B46: Meters | G46: 0
B47: Subtotals | C47: =SUM(C44:C46) -> 95829156 | D47: =SUM(D44:D46) -> 23700354 | E47: 21393127 | F47: 4340472 | G47: 145263109
B49: Totals | C49: =C42+C47 -> 333445145 | D49: =D42+D47 -> 94261227 | E49: 137307531 | F49: 23238971 | G49: 588252874
B52: Accumulated Depreciation
A53: Account
C54: Schedule 001 | D54: Schedule 011/012 | E54: Schedule 021/022 | F54: Schedule 031/032
A55: 361 | B55: Structures & Improvements | C55: 1022500 | D55: 303635 | E55: 501964 | F55: 81323 | G55: 1909422 | H55: Assign (Q1227:Y1325)
A56: 362 | B56: Station Equipment | C56: 7761220 | D56: 2304721 | E56: 3810127 | F56: 617279 | G56: 14493347
A57: 364 | B57: Poles, Towers & Fixtures | C57: 23654093 | D57: 7024163 | E57: 11605819 | F57: 1881300 | G57: 44165375
A58: 365 | B58: OH Conductors & Devices | C58: 19875893 | D58: 5902214 | E58: 9752021 | F58: 1580805 | G58: 37110933
A59: 366 | B59: UG Conduit | C59: 9043755 | D59: 2685574 | E59: 4338688 | F59: 719284 | G59: 16787301
A60: 367 | B60: UG Conductors & Devices | C60: 21646968 | D60: 6428140 | E60: 10414473 | F60: 1721665 | G60: 40211246
B61: Subtotals | C61: =SUM(C55:C60) -> 83004429 | D61: =SUM(D55:D60) -> 24648447 | E61: =SUM(E55:E60) -> 40423092 | F61: =SUM(F55:F60) -> 6601656 | G61: 154677624
A63: 368 | B63: Line Transformers | C63: 25111718 | D63: 7457010 | E63: 11312866 | F63: 1997230 | G63: 45878824
A64: 369 | B64: Services | C64: 25192653 | D64: 5054192 | E64: 237629 | F64: 329526 | G64: 30814000
A65: 370 | B65: Meters | G65: 0
B66: Subtotals | C66: =SUM(C63:C65) -> 50304371 | D66: =SUM(D63:D65) -> 12511202 | E66: =SUM(E63:E65) -> 11550495 | F66: =SUM(F63:F65) -> 2326756 | G66: 76692824
B68: Totals | C68: =C61+C66 -> 133308800 | D68: =D61+D66 -> 37159649 | E68: 51973587 | F68: 8928412 | G68: 231370448
B71: Net Plant
A72: Account
C73: Schedule 001 | D73: Schedule 011/012 | E73: Schedule 021/022 | F73: Schedule 031/032
A74: 361 | B74: Structures & Improvements | C74: =C36-C55 -> 2504544 | D74: =D36-D55 -> 743733 | E74: 1229527 | F74: 199196 | G74: 4677000
A75: 362 | B75: Station Equipment | C75: =C37-C56 -> 16795443 | D75: 4987463 | E75: 8245194 | F75: 1335805 | G75: 31363905
A76: 364 | B76: Poles, Towers & Fixtures | C76: 61289651 | D76: 18200170 | E76: 30071608 | F76: 4874598 | G76: 114436027
A77: 365 | B77: OH Conductors & Devices | C77: 37139235 | D77: 11028621 | E77: 18222204 | F77: 2953824 | G77: 69343884
A78: 366 | B78: UG Conduit | C78: 15927938 | D78: 4729855 | E78: 7641335 | F78: 1266809 | G78: 29565937
A79: 367 | B79: UG Conductors & Devices | C79: 20954749 | D79: 6222584 | E79: 10081444 | F79: 1666611 | G79: 38925388
B80: Subtotals | C80: =SUM(C74:C79) -> 154611560 | D80: =SUM(D74:D79) -> 45912426 | E80: =SUM(E74:E79) -> 75491312 | F80: =SUM(F74:F79) -> 12296843 | G80: 288312141
A82: 368 | B82: Line Transformers | C82: =C44-C63 -> 21341832 | D82: =D44-D63 -> 6337529 | E82: 9614527 | F82: 1697397 | G82: 38991285
A83: 369 | B83: Services | C83: =C45-C64 -> 24182953 | D83: 4851623 | E83: 228105 | F83: 316319 | G83: 29579000
A84: 370 | B84: Meters | G84: 0
B85: Subtotals | C85: =SUM(C82:C84) -> 45524785 | D85: =SUM(D82:D84) -> 11189152 | E85: =SUM(E82:E84) -> 9842632 | F85: =SUM(F82:F84) -> 2013716 | G85: 68570285
B87: Totals | C87: =C80+C85 -> 200136345 | D87: =D80+D85 -> 57101578 | E87: 85333944 | F87: 14310559 | G87: 356882426
B90: Depreciation Expense
A91: Account
C92: Schedule 001 | D92: Schedule 011/012 | E92: Schedule 021/022 | F92: Schedule 031/032
A93: 361 | B93: Structures & Improvements | C93: 58429 | D93: 17351 | E93: 28684 | F93: 4647 | G93: 109111 | H93: Assign (Q555:Y653)
A94: 362 | B94: Station Equipment | C94: 614618 | D94: 182513 | E94: 301727 | F94: 48883 | G94: 1147741
A95: 364 | B95: Poles, Towers & Fixtures | C95: 2103882 | D95: 624755 | E95: 1032264 | F95: 167330 | G95: 3928231
A96: 365 | B96: OH Conductors & Devices | C96: 1437766 | D96: 426949 | E96: 705434 | F96: 114351 | G96: 2684500
A97: 366 | B97: UG Conduit | C97: 561624 | D97: 166776 | E97: 269436 | F97: 44668 | G97: 1042504
A98: 367 | B98: UG Conductors & Devices | C98: 1554003 | D98: 461467 | E98: 747639 | F98: 123596 | G98: 2886705
B99: Subtotals | C99: =SUM(C93:C98) -> 6330322 | D99: =SUM(D93:D98) -> 1879811 | E99: =SUM(E93:E98) -> 3085184 | F99: =SUM(F93:F98) -> 503475 | G99: 11798792
A101: 368 | B101: Line Transformers | C101: 997287 | D101: 296148 | E101: 449279 | F101: 79318 | G101: =SUM(C101:F101) -> 1822032
A102: 369 | B102: Services | C102: 1096364 | D102: 219954 | E102: 10341 | F102: 14341 | G102: 1341000
A103: 370 | B103: Meters
B104: Subtotals | C104: =SUM(C101:C103) -> 2093651 | D104: =SUM(D101:D103) -> 516102 | E104: =SUM(E101:E103) -> 459620 | F104: =SUM(F101:F103) -> 93659
B106: Totals | C106: =C99+C104 -> 8423973 | D106: =D99+D104 -> 2395913 | E106: 3544804 | F106: 597134
A109: Total Distribution Plant Depreciation Rates by Account
F112: Test Year | G112: Effective | H112: Weighted | I112: Distribution | J112: Term Fac
A113: Account | B113: Account | C113: Plant in | D113: Accumulated | E113: Net | F113: Depreciation | G113: Depreciation | H113: Depreciation | I113: Weighted | J113: Weighted
A114: Number | B114: Description | C114: Service | D114: Depreciation | E114: Plant | F114: Expense | G114: Rate | H114: Rate | I114: Rate | J114: Rate
A115: 360 | B115: Land & Land Rights | C115: 4838000 | D115: 277000 | E115: =C115-D115 -> 4561000 | F115: 35000 | G115: =F115/C115 -> 0.007234394378 | H115: =G115*(E115/$E$125) -> 8.677491001e-05 | I115: =G115*(F115/(SUM($F$115:$F$121))) -> 2.016917343e-05
A116: 361 | B116: Structures & Improvements | C116: 7606000 | D116: 2205000 | E116: =C116-D116 -> 5401000 | F116: 126000 | G116: =F116/C116 -> 0.01656586905 | H116: =G116*(E116/$E$125) -> 0.0002352991296 | I116: =G116*(F116/(SUM($F$115:$F$121))) -> 0.0001662656922
A117: 362 | B117: Station Equipment | C117: 51621000 | D117: 16315000 | E117: =C117-D117 -> 35306000 | F117: 1292000 | G117: 0.02502857364 | H117: 0.002323895187 | I117: =G117*(F117/(SUM($F$115:$F$121))) -> 0.002575825804
A118: 364 | B118: Poles, Towers & Fixtures | C118: 168928000 | D118: 47041000 | E118: 121887000 | F118: 4184000 | G118: 0.02476794848 | H118: 0.007939247535 | I118: =G118*(F118/(SUM($F$115:$F$121))) -> 0.00825466755
A119: 365 | B119: OH Conductors & Devices | C119: 112304000 | D119: 39150000 | E119: 73154000 | F119: 2832000 | G119: 0.02521726742 | H119: 0.004851410472 | I119: 0.005688649142
A120: 366 | B120: UG Conduit | C120: 47976000 | D120: 17375000 | E120: 30601000 | F120: 1079000 | G120: 0.02249041187 | H120: 0.001809943205 | I120: 0.001933021699
A121: 367 | B121: UG Conductors & Devices | C121: 82407000 | D121: 41873000 | E121: 40534000 | F121: 3006000 | G121: 0.03647748371 | H121: 0.003888447635 | I121: 0.008734372792
A122: 368 | B122: Line Transformers | C122: 85381000 | D122: 46155000 | E122: 39226000 | F122: 1833000 | G122: 0.02146847659 | H122: 0.002214660559 | J122: =G122*(F122/(SUM($F$122:$F$124))) -> 0.01239814669
A123: 369 | B123: Services | C123: 60393000 | D123: 30814000 | E123: 29579000 | F123: 1341000 | G123: 0.02220456013 | H123: 0.001727259465 | J123: =G123*(F123/(SUM($F$122:$F$124))) -> 0.009381321719
A124: 370 | B124: Meters | E124: 0 | F124: 0
A125: Totals | C125: =SUM(C115:C124) -> 621454000 | D125: =SUM(D115:D124) -> 241205000 | E125: 380249000 | F125: 15728000 | G125: =F125/C125 -> 0.02530838968 | H125: =G125*(E125/E125) -> 0.02530838968 | I125: =SUM(I115:I124) -> 0.02737297185 | J125: =SUM(J115:J124) -> 
A128: 371 | B128: Install on Customers Premises | C128: 0 | D128: 0 | E128: 0 | F128: 0 | G128: 0
A129: 373 | B129: Street Lighting | C129: 26024000 | D129: 10040000 | E129: =C129-D129 -> 15984000 | F129: 733000 | G129: =F129/C129 -> 0.02816630802
